bitfinex/quotes_SOLUSD_20250506
["timestamp","ask_amount","ask_price","bid_price","bid_amount"]
[1746533115501,6.98519139,143.16,143.14,15.10876433]
[1746533115986,6.98324022,143.2,143.16,1.5059]
[1746533116290,6.98324022,143.2,143.18,15.10876433]
[1746533117174,6.98324022,143.2,143.19,15.10876433]
[1746533118785,7.9680911,143.21,143.19,15.10876433]
[1746533118991,7.9680911,143.21,143.2,15.10876433]
[1746533122493,0.9851314,143.21,143.2,15.10876433]
[1746533122893,7.967884,143.21,143.2,15.10876433]
[1746533123105,0.9851314,143.21,143.2,15.10876433]
[1746533124499,6.98080279,143.25,143.2,37.87662866]
[1746533124692,6.98080279,143.25,143.2,7.6591]
[1746533124884,6.98080279,143.25,143.23,15.10876433]
[1746533125688,25.63045165,143.25,143.24,15.10876433]
[1746533125897,6.98080279,143.25,143.23,15.10876433]
[1746533126092,6.98080279,143.25,143.22,15.10876433]
[1746533126298,6.98080279,143.25,143.2,7.6591]
[1746533126477,6.98080279,143.25,143.23,15.10876433]
[1746533126984,6.98080279,143.25,143.2,7.6591]
[1746533127503,6.98080279,143.25,143.23,15.10876433]
[1746533128602,6.98080279,143.25,143.24,15.10876433]
[1746533129016,6.98080279,143.25,143.2,7.6591]
[1746533129306,6.98080279,143.25,143.23,15.10876433]
[1746533129778,6.98080279,143.25,143.24,15.10876433]
[1746533130104,6.98080279,143.25,143.23,15.10876433]
[1746533130482,6.98080279,143.25,143.2,7.6591]
[1746533130683,6.98080279,143.25,143.22,15.10876433]
[1746533130987,24.4321702,143.26,143.23,15.10876433]
[1746533131190,24.4321702,143.26,143.24,15.10876433]
[1746533131396,18.64964886,143.25,143.24,15.10876433]
[1746533131703,18.64964886,143.25,143.22,15.10876433]
[1746533132185,18.64964886,143.25,143.2,7.6591]
[1746533132385,18.64964886,143.25,143.22,15.10876433]
[1746533133105,6.98129014,143.24,143.22,15.10876433]
[1746533133807,6.98129014,143.24,143.2,7.6591]
[1746533133994,6.98129014,143.24,143.22,15.10876433]
[1746533134498,25.630939,143.24,143.23,15.10876433]
[1746533135507,25.630939,143.24,143.22,15.10876433]
[1746533136293,25.630939,143.24,143.23,15.10876433]
[1746533136905,25.630939,143.24,143.22,15.10876433]
[1746533137509,25.630939,143.24,143.21,15.10876433]
[1746533139618,25.630939,143.24,143.22,15.10876433]
[1746533141610,25.630939,143.24,143.21,15.10876433]
[1746533142134,25.630939,143.24,143.22,15.10876433]
[1746533143488,6.98129014,143.24,143.23,15.10876433]
[1746533145422,6.98080279,143.25,143.23,15.10876433]
[1746533146300,6.98080279,143.25,143.2,7.6591]
[1746533146712,6.98080279,143.25,143.23,15.10876433]
[1746533147019,6.98080279,143.25,143.2,7.6591]
[1746533147225,6.98080279,143.25,143.23,15.10876433]
[1746533149219,6.97934115,143.28,143.24,21.22586433]
[1746533149409,18.64964886,143.31,143.27,15.10876433]
[1746533149599,33.75841319,143.31,143.27,15.10876433]
[1746533150013,33.75841319,143.31,143.25,1.5483]
[1746533150227,33.75841319,143.31,143.27,15.10876433]
[1746533150520,40.73629331,143.31,143.25,1.5483]
[1746533150824,15.10876433,143.3,143.26,15.10876433]
[1746533151197,15.10876433,143.27,143.24,6.1171]
[1746533151515,18.64964886,143.28,143.25,15.10876433]
[1746533151713,33.75841319,143.28,143.24,6.1171]
[1746533151917,33.75841319,143.28,143.24,21.22586433]
[1746533153123,6.97982829,143.27,143.24,21.22586433]
[1746533153418,39.53816336,143.27,143.24,6.1171]
[1746533153728,39.53816336,143.27,143.24,21.22586433]
[1746533154603,39.53816336,143.27,143.24,6.1171]
[1746533154822,39.53816336,143.27,143.23,15.10876433]
[1746533155908,39.53816336,143.27,143.21,27.5477]
[1746533156228,33.75841319,143.26,143.22,15.10876433]
[1746533156721,18.64964886,143.26,143.23,15.10876433]
[1746533157425,33.75841319,143.26,143.22,15.10876433]
[1746533157725,6.98080279,143.25,143.22,15.10876433]
[1746533158333,6.98080279,143.25,143.23,15.10876433]
[1746533158805,6.98080279,143.25,143.24,15.10876433]
[1746533159831,24.42939903,143.27,143.24,15.10876433]
[1746533160032,6.97982829,143.27,143.25,15.10876433]
[1746533160532,6.97982829,143.27,143.26,15.10876433]
[1746533160830,6.97945638,143.28,143.26,15.10876433]
[1746533161130,6.97945638,143.28,143.27,15.10876433]
[1746533162029,33.75841319,143.3,143.23,6.3112]
[1746533162030,6.97885407,143.29,143.26,15.10876433]
[1746533163335,6.97885407,143.29,143.27,15.10876433]
[1746533165527,6.97836706,143.3,143.27,15.10876433]
[1746533166637,22.08713139,143.3,143.26,16.68746433]
[1746533166821,39.53304904,143.3,143.26,1.5787]
[1746533167027,15.10876433,143.29,143.26,1.5787]
[1746533167339,39.53304904,143.3,143.26,16.68746433]
[1746533167846,24.42428471,143.3,143.26,1.5787]
[1746533168041,24.42428471,143.3,143.26,15.10876433]
[1746533168042,15.10876433,143.29,143.26,15.10876433]
[1746533169139,39.53304904,143.3,143.26,15.10876433]
[1746533169341,24.42428471,143.3,143.27,15.10876433]
[1746533169915,24.42428471,143.3,143.28,15.10876433]
[1746533170136,6.97836706,143.3,143.28,15.10876433]
[1746533170940,6.97836706,143.3,143.27,15.10876433]
[1746533171410,22.08713139,143.3,143.27,15.10876433]
[1746533172534,6.97836706,143.3,143.27,15.10876433]
[1746533173327,22.08713139,143.3,143.26,15.10876433]
[1746533173523,22.08713139,143.3,143.27,15.10876433]
[1746533174039,6.97836706,143.3,143.23,39.29291462]
[1746533174226,22.08713139,143.3,143.27,15.10876433]
[1746533175320,22.08713139,143.3,143.23,39.29291462]
[1746533175528,22.08713139,143.3,143.26,15.10876433]
[1746533175730,15.10876433,143.29,143.23,32.3112]
[1746533176047,15.10876433,143.28,143.25,15.10876433]
[1746533176342,24.42428471,143.3,143.23,32.3112]
[1746533176540,39.53304904,143.3,143.26,15.10876433]
[1746533177859,39.53304904,143.3,143.27,15.10876433]
[1746533177860,24.42428471,143.3,143.27,15.10876433]
[1746533179444,6.97836706,143.3,143.28,15.10876433]
[1746533179747,6.97788506,143.31,143.29,15.10876433]
[1746533181749,33.75841319,143.33,143.29,15.10876433]
[1746533181750,6.97739324,143.32,143.29,15.10876433]
[1746533182938,6.97705434,143.33,143.3,15.10876433]
[1746533183146,6.97705434,143.33,143.28,11.5723879]
[1746533183450,6.97705434,143.33,143.3,15.10876433]
[1746533185043,15.10876433,143.31,143.24,26.0]
[1746533185232,15.10876433,143.29,143.25,15.10876433]
[1746533185637,18.64964886,143.31,143.25,15.10876433]
[1746533185836,15.10876433,143.29,143.25,15.10876433]
[1746533186558,22.08713139,143.3,143.26,15.10876433]
[1746533187048,24.42428471,143.3,143.27,15.10876433]
[1746533187853,6.97836706,143.3,143.28,15.10876433]
[1746533188352,6.97836706,143.3,143.29,15.10876433]
[1746533188555,6.97739324,143.32,143.29,15.10876433]
[1746533191150,6.97739324,143.32,143.28,6.425]
[1746533191357,6.97739324,143.32,143.3,15.10876433]
[1746533192357,6.47739324,143.32,143.28,6.425]
[1746533192550,6.47739324,143.32,143.3,15.10876433]
[1746533193357,6.97690643,143.33,143.3,15.10876433]
[1746533194857,6.97690643,143.33,143.28,6.425]
[1746533195256,6.97690643,143.33,143.3,15.10876433]
[1746533195637,6.97690643,143.33,143.31,15.10876433]
[1746533196651,6.9764197,143.34,143.28,13.40410498]
[1746533196839,6.9764197,143.34,143.31,15.10876433]
[1746533197035,15.10876433,143.33,143.29,15.10876433]
[1746533197661,15.10876433,143.32,143.28,6.425]
[1746533197864,15.10876433,143.32,143.29,15.10876433]
[1746533198377,15.10876433,143.32,143.28,6.425]
[1746533198575,22.08713139,143.3,143.27,27.5227]
[1746533198873,22.08713139,143.3,143.25,15.84]
[1746533198874,15.10876433,143.29,143.25,41.10876433]
[1746533199249,15.10876433,143.29,143.25,26.0]
[1746533199449,15.10876433,143.29,143.25,41.10876433]
[1746533200481,7.84326336,143.35,143.28,26.0]
[1746533200684,15.10876433,143.34,143.28,26.0]
[1746533200988,15.10876433,143.33,143.29,15.10876433]
[1746533201661,15.10876433,143.34,143.29,15.10876433]
[1746533202362,18.64964886,143.35,143.29,15.10876433]
[1746533202577,15.10876433,143.34,143.29,15.10876433]
[1746533202975,6.97690643,143.33,143.3,15.10876433]
[1746533203180,18.64964886,143.32,143.28,26.0]
[1746533203357,6.97690643,143.33,143.29,15.10876433]
[1746533203856,6.97690643,143.33,143.3,15.10876433]
[1746533205186,6.97690643,143.33,143.27,32.97937826]
[1746533205355,6.97690643,143.33,143.3,15.10876433]
[1746533206762,93.12628792,143.34,143.31,15.10876433]
[1746533206963,93.12628792,143.34,143.32,15.10876433]
[1746533207969,93.12628792,143.34,143.33,15.10876433]
[1746533208882,93.12628792,143.34,143.32,15.10876433]
[1746533210980,93.12628792,143.34,143.33,15.10876433]
[1746533211686,93.12628792,143.34,143.3,6.6522]
[1746533211985,86.14964886,143.33,143.29,1.6121]
[1746533212187,86.14964886,143.33,143.31,15.10876433]
[1746533212657,67.5,143.33,143.32,15.10876433]
[1746533214577,74.47690643,143.33,143.32,15.10876433]
[1746533214775,67.5,143.33,143.32,15.10876433]
[1746533215666,67.5,143.33,143.29,23.69949064]
[1746533215889,67.5,143.33,143.32,15.10876433]
[1746533217206,6.97690643,143.33,143.32,15.10876433]
[1746533217373,6.97665235,143.34,143.32,15.10876433]
[1746533218497,6.97665235,143.34,143.33,15.10876433]
[1746533221902,6.97665235,143.34,143.29,16.72086433]
[1746533222095,6.97665235,143.34,143.33,15.10876433]
[1746533224099,6.97665235,143.34,143.29,16.72086433]
[1746533224303,6.97665235,143.34,143.29,42.72086433]
[1746533224507,6.97665235,143.34,143.33,15.10876433]
[1746533226010,6.97665235,143.34,143.32,15.10876433]
[1746533228989,24.4177016,143.34,143.29,27.6121]
[1746533229187,24.4177016,143.34,143.31,15.10876433]
[1746533229489,24.4177016,143.34,143.29,27.6121]
[1746533229794,24.4177016,143.34,143.31,15.10876433]
[1746533229995,33.75841319,143.33,143.29,27.6121]
[1746533230185,33.75841319,143.33,143.29,41.10876433]
[1746533230384,18.64964886,143.33,143.3,15.10876433]
[1746533231207,6.97739324,143.32,143.3,15.10876433]
[1746533232099,6.97739324,143.32,143.29,26.0]
[1746533232305,67.5,143.32,143.29,26.0]
[1746533232606,67.5,143.32,143.3,15.10876433]
[1746533233720,67.5,143.32,143.29,41.10876433]
[1746533233907,67.5,143.32,143.29,26.0]
[1746533234109,67.5,143.32,143.29,41.10876433]
[1746533234888,25.62677629,143.33,143.3,15.10876433]
[1746533235114,15.10876433,143.34,143.29,26.0]
[1746533235115,67.5,143.31,143.29,48.0875027]
[1746533235316,67.5,143.33,143.3,15.10876433]
[1746533235518,86.14964886,143.33,143.32,15.10876433]
[1746533236092,67.5,143.33,143.32,15.10876433]
[1746533237720,67.5,143.33,143.29,26.0]
[1746533237891,67.5,143.33,143.3,15.10876433]
[1746533238517,74.47692433,143.33,143.3,15.10876433]
[1746533241302,67.5,143.32,143.3,15.10876433]
[1746533241503,67.5,143.32,143.29,26.0]
[1746533241710,74.47767439,143.32,143.3,15.10876433]
[1746533242223,74.47767439,143.32,143.29,41.10876433]
[1746533242714,74.47767439,143.32,143.29,26.0]
[1746533242903,74.47767439,143.32,143.3,15.10876433]
[1746533243717,74.47767439,143.32,143.29,41.10876433]
[1746533245318,74.47767439,143.32,143.3,15.10876433]
[1746533253310,67.5,143.32,143.3,15.10876433]
[1746533254114,67.5,143.32,143.31,21.49936433]
[1746533254317,6.97593303,143.35,143.31,21.49936433]
[1746533254516,6.97593303,143.35,143.34,15.10876433]
[1746533254829,74.47593303,143.35,143.34,15.10876433]
[1746533256340,67.5,143.35,143.34,15.10876433]
[1746533256509,74.47593303,143.35,143.34,15.10876433]
[1746533257718,74.47593303,143.35,143.31,13.36817403]
[1746533257918,74.47593303,143.35,143.34,15.10876433]
[1746533260821,74.47593303,143.35,143.33,15.10876433]
[1746533261521,74.47593303,143.35,143.34,15.10876433]
[1746533264339,74.47593303,143.35,143.31,6.3906]
[1746533264727,74.47593303,143.35,143.33,15.10876433]
[1746533268849,74.47593303,143.35,143.31,6.3906]
[1746533269036,74.47593303,143.35,143.33,15.10876433]
[1746533271124,74.47593303,143.35,143.31,6.3906]
[1746533271426,74.47593303,143.35,143.33,15.10876433]
[1746533271926,67.5,143.35,143.34,15.10876433]
[1746533272421,74.47593303,143.35,143.31,6.3906]
[1746533272620,67.5,143.35,143.34,15.10876433]
[1746533272822,74.47593303,143.35,143.34,15.10876433]
[1746533273415,74.47593303,143.35,143.33,15.10876433]
[1746533277359,74.47593303,143.35,143.34,15.10876433]
[1746533277655,74.47593303,143.35,143.33,15.10876433]
[1746533279751,74.47593303,143.35,143.33,9.61763355]
[1746533281161,67.5,143.35,143.34,9.61763355]
[1746533281362,67.5,143.35,143.33,9.61763355]
[1746533281667,67.5,143.35,143.34,9.61763355]
[1746533282861,74.47593303,143.35,143.34,9.61763355]
[1746533283158,74.47593303,143.35,143.33,9.61763355]
[1746533283361,67.5,143.35,143.33,9.61763355]
[1746533283740,67.5,143.35,143.34,9.61763355]
[1746533283941,74.47601311,143.35,143.34,9.61763355]
[1746533284241,67.5,143.35,143.34,9.61763355]
[1746533286137,74.47520964,143.37,143.34,9.61763355]
[1746533286344,74.47520964,143.37,143.36,9.61763355]
[1746533287458,74.47520964,143.37,143.35,9.61763355]
[1746533287839,74.47520964,143.37,143.32,32.97698394]
[1746533288347,74.47520964,143.37,143.35,9.61763355]
[1746533291236,74.47520964,143.37,143.33,3.51514064]
[1746533291446,74.47520964,143.37,143.34,9.61763355]
[1746533291947,74.47520964,143.37,143.35,9.61763355]
[1746533292882,74.47520964,143.37,143.32,32.97726553]
[1746533293174,67.5,143.37,143.35,9.61763355]
[1746533293335,67.5,143.37,143.36,9.61763355]
[1746533294962,67.5,143.37,143.35,9.61763355]
[1746533296673,67.5,143.37,143.36,9.61763355]
[1746533298262,74.47417981,143.39,143.36,9.61763355]
[1746533298448,74.47417981,143.39,143.37,9.61763355]
[1746533299671,67.5,143.39,143.38,9.61763355]
[1746533302946,67.5,143.41,143.38,9.61763355]
[1746533303150,41.1619032,143.43,143.4,9.61763355]
[1746533303377,67.5,143.41,143.37,32.97491044]
[1746533304578,67.5,143.41,143.4,9.61763355]
[1746533304764,74.4720889,143.43,143.4,9.61763355]
[1746533304965,74.4720889,143.43,143.41,9.61763355]
[1746533305264,74.4720889,143.43,143.4,9.61763355]
[1746533306297,74.4720889,143.43,143.37,26.0]
[1746533306456,84.08972245,143.43,143.37,26.0]
[1746533306656,84.08972245,143.43,143.4,9.61763355]
[1746533307056,84.08972245,143.43,143.37,26.0]
[1746533307303,84.08972245,143.43,143.4,9.61763355]
[1746533307481,67.5,143.42,143.4,9.61763355]
[1746533307691,74.47284191,143.42,143.4,9.61763355]
[1746533308086,74.47284191,143.42,143.37,32.974886]
[1746533308270,67.5,143.41,143.37,32.974886]
[1746533308579,67.5,143.41,143.4,9.61763355]
[1746533308777,67.5,143.41,143.39,9.61763355]
[1746533309984,74.47303426,143.41,143.39,9.61763355]
[1746533310183,74.47303426,143.41,143.37,32.974886]
[1746533310386,67.5,143.41,143.4,9.61763355]
[1746533312771,67.5,143.41,143.4,35.61763355]
[1746533313176,67.5,143.41,143.4,26.0]
[1746533313383,67.5,143.41,143.4,35.61763355]
[1746533314089,74.47301443,143.41,143.38,9.61763355]
[1746533317477,67.5,143.41,143.39,9.61763355]
[1746533317674,74.4731253,143.41,143.39,9.61763355]
[1746533320090,74.4731253,143.41,143.38,9.61763355]
[1746533320287,84.09075885,143.41,143.37,35.61763355]
[1746533320484,67.5,143.4,143.38,9.61763355]
[1746533321097,67.5,143.4,143.39,9.61763355]
[1746533321889,67.5,143.4,143.37,26.0]
[1746533322090,6.97398702,143.39,143.37,26.0]
[1746533322407,6.97398702,143.39,143.36,9.61763355]
[1746533322987,16.59162057,143.39,143.35,15.91413355]
[1746533323191,67.5,143.38,143.36,26.0]
[1746533323418,67.5,143.37,143.36,26.0]
[1746533324218,74.47495989,143.37,143.36,26.0]
[1746533325084,67.5,143.37,143.36,35.61763355]
[1746533325814,74.47495989,143.37,143.36,26.0]
[1746533326110,67.5,143.37,143.36,26.0]
[1746533326985,67.5,143.37,143.36,35.61763355]
[1746533328187,67.5,143.39,143.36,35.61763355]
[1746533328405,67.5,143.39,143.38,9.61763355]
[1746533332803,67.5,143.39,143.36,32.9752704]
[1746533333115,67.5,143.39,143.38,9.61763355]
[1746533334234,67.5,143.41,143.38,9.61763355]
[1746533334443,67.5,143.41,143.38,16.59205073]
[1746533335311,67.5,143.41,143.4,9.61763355]
[1746533336719,67.5,143.41,143.37,6.97481987]
[1746533337020,67.5,143.41,143.39,9.61763355]
[1746533338823,74.47304419,143.41,143.39,9.61763355]
[1746533339036,67.5,143.41,143.39,9.61763355]
[1746533339215,74.47307554,143.41,143.39,9.61763355]
[1746533339733,74.47307554,143.41,143.39,15.01477711]
[1746533342037,67.5,143.41,143.39,15.01477711]
[1746533345506,67.5,143.41,143.4,15.01477711]
[1746533345714,6.97210168,143.43,143.4,15.01477711]
[1746533346415,21.98687879,143.43,143.4,15.01477711]
[1746533346617,6.97210168,143.43,143.39,26.0]
[1746533346818,6.97210168,143.43,143.4,15.01477711]
[1746533348138,74.47210168,143.43,143.4,15.01477711]
[1746533352441,89.48687879,143.43,143.4,15.01477711]
[1746533352947,89.48687879,143.43,143.39,26.0]
[1746533353121,89.48687879,143.43,143.4,26.0]
[1746533353739,15.01477711,143.42,143.38,1.5618]
[1746533353943,15.01477711,143.41,143.37,41.01477711]
[1746533354332,91.90220695,143.43,143.37,41.01477711]
[1746533354545,15.01477711,143.41,143.37,41.01477711]
[1746533354847,91.90220695,143.43,143.37,41.01477711]
[1746533355040,15.01477711,143.41,143.37,41.01477711]
[1746533356764,6.97350069,143.4,143.37,41.01477711]
[1746533357058,74.47350069,143.4,143.37,26.0]
[1746533357256,74.47350069,143.4,143.37,41.01477711]
[1746533357858,15.01477711,143.39,143.35,6.2965]
[1746533358044,82.51477711,143.38,143.34,15.01477711]
[1746533358843,6.97495989,143.37,143.33,29.48996433]
[1746533359127,6.97495989,143.37,143.34,15.01477711]
[1746533360331,6.97495989,143.37,143.35,15.01477711]
[1746533360850,6.97495989,143.37,143.33,36.46682597]
[1746533361026,6.97495989,143.37,143.35,15.01477711]
[1746533362658,6.97495989,143.37,143.33,29.48996433]
[1746533362831,6.97495989,143.37,143.35,15.01477711]
[1746533366470,74.47469669,143.38,143.35,15.01477711]
[1746533367266,74.47469669,143.38,143.36,15.01477711]
[1746533367471,67.5,143.37,143.36,15.01477711]
[1746533367845,67.5,143.37,143.36,9.61376029]
[1746533369339,67.5,143.37,143.35,9.61376029]
[1746533369868,84.08878302,143.37,143.33,29.48996433]
[1746533370044,67.5,143.36,143.34,9.61376029]
[1746533370744,67.5,143.36,143.33,29.48996433]
[1746533371041,67.5,143.36,143.34,9.61376029]
[1746533371884,74.47573781,143.36,143.34,15.02610665]
[1746533374690,74.47573781,143.36,143.34,26.0]
[1746533374907,74.47573781,143.36,143.34,41.02610665]
[1746533376693,74.47573781,143.36,143.34,15.02610665]
[1746533377671,74.47573781,143.36,143.33,18.51607098]
[1746533378390,74.47573781,143.36,143.32,26.0]
[1746533378580,74.47573781,143.36,143.33,15.02610665]
[1746533380883,74.47573781,143.36,143.32,26.0]
[1746533381086,74.47573781,143.36,143.33,15.02610665]
[1746533381287,74.47573781,143.36,143.34,15.02610665]
[1746533385105,74.47573781,143.36,143.35,15.02610665]
[1746533385278,74.47573781,143.36,143.34,15.02610665]
[1746533386603,74.47573781,143.36,143.32,29.53262368]
[1746533386808,74.47573781,143.36,143.34,15.02610665]
[1746533387013,74.47573781,143.36,143.32,36.50998728]
[1746533387305,74.47573781,143.36,143.34,15.02610665]
[1746533389306,67.5,143.36,143.34,15.02610665]
[1746533389805,67.5,143.36,143.35,15.02610665]
[1746533390179,74.47544642,143.36,143.35,15.02610665]
[1746533391609,67.5,143.36,143.35,15.02610665]
[1746533391905,67.5,143.36,143.35,9.61487876]
[1746533393304,67.5,143.36,143.34,9.61487876]
[1746533397515,67.5,143.36,143.32,36.50990336]
[1746533397716,67.5,143.36,143.34,9.61487876]
[1746533398206,74.47549043,143.36,143.34,9.61487876]
[1746533398408,67.5,143.36,143.34,9.61487876]
[1746533399416,74.47545222,143.36,143.34,9.61487876]
[1746533399989,67.5,143.36,143.34,9.61487876]
[1746533400190,74.47547544,143.36,143.34,9.61487876]
[1746533400419,74.47547544,143.36,143.33,9.61487876]
[1746533400918,9.61487876,143.35,143.32,3.53262368]
[1746533401116,84.0903542,143.36,143.32,9.61487876]
[1746533402315,84.0903542,143.36,143.32,13.03678126]
[1746533404120,84.0903542,143.36,143.33,9.61487876]
[1746533405605,84.0903542,143.36,143.31,6.4806]
[1746533405805,84.0903542,143.36,143.32,9.61487876]
[1746533406310,74.47636633,143.35,143.32,9.61487876]
[1746533407403,74.47636633,143.35,143.33,9.61487876]
[1746533407731,74.47636633,143.35,143.31,9.9258266]
[1746533407914,74.47636633,143.35,143.33,9.61487876]
[1746533409628,74.47636633,143.35,143.32,9.61487876]
[1746533414344,74.47636633,143.35,143.33,9.61487876]
[1746533416940,74.47636633,143.35,143.31,16.90367458]
[1746533417128,74.47636633,143.35,143.33,9.61487876]
[1746533419544,74.47636633,143.35,143.31,9.9258266]
[1746533419719,74.47636633,143.35,143.33,9.61487876]
[1746533421838,74.47636633,143.35,143.31,9.9258266]
[1746533422248,74.47636633,143.35,143.32,9.61487876]
[1746533424651,86.14964886,143.34,143.3,1.6467]
[1746533424866,9.61487876,143.32,143.28,9.61487876]
[1746533425029,77.11487876,143.33,143.29,9.61487876]
[1746533425365,67.5,143.33,143.3,9.61487876]
[1746533425534,67.5,143.32,143.3,9.61487876]
[1746533425734,67.5,143.32,143.28,26.0]
[1746533426031,67.5,143.32,143.3,9.61487876]
[1746533429764,67.5,143.32,143.28,36.47125031]
[1746533429939,67.5,143.32,143.3,9.61487876]
[1746533430140,67.5,143.31,143.3,9.61487876]
[1746533431556,67.5,143.31,143.28,36.47125031]
[1746533431862,67.5,143.31,143.3,9.61487876]
[1746533438548,67.5,143.31,143.29,9.61487876]
[1746533448491,74.47801038,143.31,143.29,9.61487876]
[1746533448682,74.47801038,143.31,143.28,35.61487876]
[1746533449194,84.09288914,143.31,143.28,35.61487876]
[1746533450179,84.09288914,143.31,143.28,26.0]
[1746533450688,84.09288914,143.31,143.28,35.61487876]
[1746533450888,74.47801038,143.31,143.28,35.61487876]
[1746533454293,67.5,143.3,143.28,35.61487876]
[1746533454490,67.5,143.3,143.29,26.0]
[1746533454677,67.5,143.3,143.29,35.61487876]
[1746533460193,67.5,143.3,143.29,26.0]
[1746533465482,67.5,143.3,143.29,35.61487876]
[1746533470101,67.5,143.3,143.29,26.0]
[1746533472006,67.5,143.3,143.29,35.61487876]
[1746533472523,67.5,143.3,143.29,26.0]
[1746533478404,74.47836706,143.3,143.29,26.0]
[1746533478606,6.97836706,143.3,143.29,26.0]
[1746533479115,25.62771318,143.31,143.29,26.0]
[1746533481299,35.24259194,143.31,143.29,26.0]
[1746533483597,25.62771318,143.31,143.29,26.0]
[1746533483796,35.24259194,143.31,143.29,26.0]
[1746533488008,25.62771318,143.31,143.29,26.0]
[1746533488331,35.24259194,143.31,143.29,26.0]
[1746533490915,9.61487876,143.3,143.26,1.6038]
[1746533491121,28.26452762,143.3,143.29,26.0]
[1746533491302,25.62771318,143.31,143.29,26.0]
[1746533491303,18.64964886,143.31,143.29,26.0]
[1746533491624,9.61487876,143.3,143.26,11.26817876]
[1746533491809,9.61487876,143.29,143.26,9.61487876]
[1746533492531,9.61487876,143.29,143.25,35.61487876]
[1746533492824,9.61487876,143.29,143.25,9.61487876]
[1746533493030,16.59421991,143.28,143.24,9.61487876]
[1746533493206,16.59421991,143.28,143.25,26.0]
[1746533493406,16.59421991,143.28,143.26,26.0]
[1746533494026,6.97934115,143.28,143.26,26.0]
[1746533494724,18.64964886,143.31,143.27,9.61487876]
[1746533494902,136.5,143.32,143.29,9.61487876]
[1746533495228,146.11487876,143.32,143.29,9.61487876]
[1746533495830,153.09244975,143.32,143.29,9.61487876]
[1746533496229,6.97447342,143.38,143.31,9.61487876]
[1746533496426,6.97447342,143.38,143.33,9.61487876]
[1746533496726,28.26452762,143.37,143.33,9.61487876]
[1746533496922,18.64964886,143.37,143.33,9.61487876]
[1746533497230,28.26452762,143.37,143.33,9.61487876]
[1746533497904,28.26452762,143.37,143.32,9.61487876]
[1746533497905,16.59032518,143.36,143.32,9.61487876]
[1746533501435,18.64964886,143.37,143.32,9.61487876]
[1746533501436,6.9764197,143.34,143.32,9.61487876]
[1746533502218,6.9764197,143.34,143.31,9.61487876]
[1746533505335,67.5,143.35,143.31,6.97786851]
[1746533505534,67.5,143.35,143.34,9.61487876]
[1746533506132,6.97570065,143.36,143.34,9.61487876]
[1746533506644,6.97570065,143.36,143.33,9.61487876]
[1746533507145,16.59057941,143.36,143.32,9.61487876]
[1746533508023,16.59057941,143.36,143.3,14.58721908]
[1746533508435,16.59057941,143.36,143.32,9.61487876]
[1746533509843,16.59057941,143.36,143.3,14.58719376]
[1746533510143,16.59057941,143.36,143.32,9.61487876]
[1746533510954,6.97570065,143.36,143.32,9.61487876]
[1746533511247,84.09057941,143.36,143.32,9.61487876]
[1746533513246,84.09057941,143.36,143.3,14.58719376]
[1746533513451,84.09057941,143.36,143.32,9.61487876]
[1746533516954,101.52919548,143.36,143.3,7.6089]
[1746533517123,9.61487876,143.35,143.31,9.61487876]
[1746533517323,9.61487876,143.34,143.3,7.6089]
[1746533517527,9.61487876,143.33,143.3,7.6089]
[1746533517727,6.97739324,143.32,143.3,7.6089]
[1746533517960,9.61487876,143.31,143.27,21.8148]
[1746533518247,9.61487876,143.3,143.27,32.6548]
[1746533518850,9.61487876,143.3,143.27,6.6548]
[1746533519052,9.61487876,143.3,143.27,32.6548]
[1746533519346,9.61487876,143.29,143.27,32.6548]
[1746533520549,16.59373283,143.29,143.27,32.6548]
[1746533520847,16.59373283,143.29,143.27,6.6548]
[1746533521045,9.61487876,143.28,143.23,34.49319328]
[1746533521253,9.61487876,143.26,143.23,24.87831452]
[1746533521434,9.61487876,143.26,143.23,9.79831452]
[1746533521943,9.61487876,143.26,143.23,35.79831452]
[1746533522348,16.59611486,143.25,143.23,32.2832]
[1746533522575,9.61487876,143.24,143.16,22.06499467]
[1746533522765,91.93324308,143.25,143.18,3.5369087]
[1746533522766,9.61487876,143.21,143.18,3.5369087]
[1746533522931,9.61487876,143.22,143.18,9.61487876]
[1746533523751,15.05884417,143.22,143.18,15.05884417]
[1746533524148,15.05884417,143.22,143.16,22.06499467]
[1746533524337,15.05884417,143.22,143.18,15.05884417]
[1746533524650,15.05884417,143.22,143.18,22.04305475]
[1746533524849,82.55884417,143.23,143.19,15.05884417]
[1746533525255,67.5,143.23,143.18,6.98421058]
[1746533525446,82.55884417,143.23,143.18,6.98421058]
[1746533525638,82.55884417,143.23,143.19,15.05884417]